bitfinex/quotes_BTCUSD_20230118
["timestamp","ask_amount","ask_price","bid_price","bid_amount"]
[1674009974323,0.0239104,21343.0,21341.0,0.67737549]
[1674009974595,0.0239104,21343.0,21342.0,0.321235]
[1674009974889,0.0239104,21343.0,21342.0,0.471235]
[1674009975161,0.0239104,21343.0,21342.0,0.321235]
[1674009976239,0.0239104,21343.0,21342.0,0.74889319]
[1674009977035,0.02309301,21347.0,21343.0,0.21262415]
[1674009977308,0.02309301,21347.0,21344.0,0.71923293]
[1674009977595,0.66896412,21355.0,21344.0,0.71923293]
[1674009977596,0.15,21354.0,21345.0,1.87775636]
[1674009977883,0.69997336,21356.0,21345.0,1.87775636]
[1674009977884,0.69997336,21356.0,21346.0,0.60913705]
[1674009978122,0.06108422,21355.0,21348.0,0.46841]
[1674009978390,0.875289,21359.0,21349.0,0.60867971]
[1674009978647,1.06601495,21359.0,21350.0,0.321235]
[1674009978944,1.06601495,21359.0,21352.0,0.46834]
[1674009979204,1.06601495,21359.0,21352.0,0.73178819]
[1674009979205,0.875289,21359.0,21352.0,0.73178819]
[1674009979758,0.59782595,21359.0,21352.0,0.73178819]
[1674009979762,0.07253457,21358.0,21352.0,0.28874511]
[1674009980025,1.06601495,21359.0,21352.0,0.75534426]
[1674009980026,0.19072595,21359.0,21352.0,0.75534426]
[1674009980295,0.25238501,21359.0,21353.0,0.28605561]
[1674009980561,0.25238501,21359.0,21352.0,0.46928879]
[1674009980837,0.26151348,21359.0,21353.0,0.28490302]
[1674009981098,0.19072595,21359.0,21353.0,0.75299465]
[1674009981367,0.468157,21361.0,21354.0,0.47675385]
[1674009981368,0.19072595,21358.0,21354.0,0.47675385]
[1674009981871,0.05436827,21359.0,21354.0,0.47675385]
[1674009982147,0.0085,21358.0,21354.0,0.47675385]
[1674009982665,0.00185097,21357.0,21354.0,0.47675385]
[1674009982973,0.00748,21358.0,21354.0,0.47675385]
[1674009983565,0.05436827,21359.0,21355.0,0.321235]
[1674009983808,0.07082535,21363.0,21356.0,0.75652169]
[1674009984085,0.4692139,21364.0,21357.0,0.60575095]
[1674009984086,0.05438218,21361.0,21357.0,0.60575095]
[1674009984377,0.06130011,21359.0,21353.0,0.42255709]
[1674009984642,0.50450011,21359.0,21356.0,0.0009717]
[1674009984937,1.26104575,21358.0,21356.0,0.0009717]
[1674009985196,1.96901669,21357.0,21346.0,0.468463]
[1674009985463,0.23416,21353.0,21343.0,0.06281415]
[1674009985742,0.468384,21350.0,21344.0,0.36341196]
[1674009986008,0.1442,21347.0,21344.0,0.36341196]
[1674009986528,0.51196095,21346.0,21343.0,0.06380633]
[1674009986536,0.15,21345.0,21343.0,0.06380633]
[1674009986795,0.38422595,21344.0,21343.0,0.06380633]
[1674009987083,0.38422595,21344.0,21343.0,0.06262415]
[1674009987084,0.321235,21344.0,21343.0,0.06262415]
[1674009987358,0.0085,21346.0,21343.0,0.28262415]
[1674009987884,0.0085,21346.0,21343.0,0.63631117]
[1674009988390,0.0085,21346.0,21344.0,0.00104241]
[1674009988647,0.0085,21346.0,21343.0,0.28262415]
[1674009988920,0.00185097,21345.0,21343.0,0.28262415]
[1674009989179,0.51196095,21344.0,21343.0,0.28262415]
[1674009989430,0.329735,21344.0,21343.0,0.28262415]
[1674009989715,0.1935,21344.0,21343.0,0.28262415]
[1674009990497,0.514735,21344.0,21343.0,0.28262415]
[1674009990758,0.329735,21344.0,21343.0,0.28262415]
[1674009991028,0.19535097,21344.0,21343.0,0.28262415]
[1674009991325,0.84926095,21344.0,21343.0,0.28262415]
[1674009991589,1.108535,21344.0,21343.0,0.28262415]
[1674009991871,0.514735,21344.0,21343.0,0.28262415]
[1674009992166,0.51658597,21344.0,21343.0,0.28262415]
[1674009992462,0.329735,21344.0,21343.0,0.28262415]
[1674009992700,0.468431,21348.0,21343.0,0.28262415]
[1674009993005,0.50616947,21349.0,21343.0,0.63372075]
[1674009993006,0.03775947,21349.0,21343.0,0.63372075]
[1674009993264,0.45816147,21352.0,21344.0,0.6723316]
[1674009993537,0.468283,21355.0,21346.0,0.936931]
[1674009993802,0.0428374,21353.0,21347.0,0.48862927]
[1674009994042,0.04179811,21351.0,21346.0,1.10557395]
[1674009994545,0.19072595,21353.0,21344.0,1.00759014]
[1674009994546,0.19072595,21350.0,21344.0,1.00759014]
[1674009994551,0.19072595,21350.0,21345.0,0.4893034]
[1674009994821,0.65914195,21349.0,21346.0,0.00098652]
[1674009995110,0.65914195,21349.0,21343.0,0.28179293]
[1674009995111,0.72878889,21348.0,21343.0,0.28179293]
[1674009995333,0.1443,21345.0,21343.0,0.28179293]
[1674009995612,0.78975,21344.0,21343.0,0.28179293]
[1674009995833,0.329735,21344.0,21343.0,0.28179293]
[1674009996091,0.0085,21344.0,21343.0,0.28179293]
[1674009996337,0.00185097,21344.0,21343.0,0.28179293]
[1674009996591,0.52187692,21344.0,21343.0,0.28179293]
[1674009996870,0.15,21343.0,21340.0,0.00095016]
[1674009997117,0.1442,21341.0,21340.0,0.00095016]
[1674009997389,2.04517392,21341.0,21340.0,0.00095016]
[1674009997615,2.04517392,21341.0,21338.0,0.0085]
[1674009997616,0.15,21340.0,21338.0,0.0085]
[1674009997867,0.101235,21339.0,21338.0,0.0085]
[1674009998874,0.109735,21339.0,21338.0,0.0085]
[1674009999124,0.554035,21339.0,21338.0,0.0085]
[1674009999419,0.704035,21339.0,21338.0,0.0085]
[1674009999632,1.12636919,21339.0,21338.0,0.0085]
[1674009999936,1.83788088,21339.0,21338.0,0.0085]
[1674010000134,1.83788088,21339.0,21333.0,0.00156444]
[1674010000135,1.98957264,21339.0,21333.0,0.00156444]
[1674010000418,0.145,21334.0,21333.0,0.00156444]
[1674010000687,0.189245,21334.0,21333.0,0.00156444]
[1674010000928,0.197745,21334.0,21333.0,0.00156444]
[1674010001200,0.19959597,21334.0,21333.0,0.00156444]
[1674010001432,0.39032192,21334.0,21333.0,0.00156444]
[1674010001702,0.49959597,21334.0,21333.0,0.00156444]
[1674010002008,1.17834826,21334.0,21333.0,0.00156444]
[1674010002202,1.22364892,21334.0,21333.0,0.00156444]
[1674010002470,1.37364892,21334.0,21333.0,0.00156444]
[1674010002723,0.57849663,21334.0,21333.0,0.00156444]
[1674010003235,1.02849663,21334.0,21333.0,0.00156444]
[1674010003501,1.17279663,21334.0,21333.0,0.00156444]
[1674010004003,1.64153163,21334.0,21333.0,0.00156444]
[1674010004257,2.42350308,21334.0,21333.0,0.00156444]
[1674010004795,1.04723163,21334.0,21333.0,0.00156444]
[1674010005064,1.19723163,21334.0,21333.0,0.00156444]
[1674010005542,1.34153163,21334.0,21333.0,0.00156444]
[1674010006036,0.15,21333.0,21329.0,0.04491415]
[1674010006287,2.07110795,21332.0,21329.0,0.04491415]
[1674010006555,0.189247,21331.0,21329.0,0.04491415]
[1674010006790,0.329733,21330.0,21329.0,0.04392303]
[1674010007041,0.798556,21330.0,21329.0,0.04392303]
[1674010007293,0.798556,21330.0,21329.0,0.00181661]
[1674010007831,1.267379,21330.0,21329.0,0.00181661]
[1674010008094,0.798556,21330.0,21329.0,0.00181661]
[1674010008362,0.3969558,21330.0,21329.0,0.00181661]
[1674010008613,0.46881,21331.0,21329.0,0.00181661]
[1674010008899,0.468791,21332.0,21329.0,0.364338]
[1674010009156,0.51355344,21332.0,21329.0,0.364338]
[1674010009411,0.189237,21331.0,21329.0,0.364338]
[1674010009773,0.468801,21331.0,21329.0,0.364338]
[1674010010031,0.19108797,21330.0,21329.0,0.364338]
[1674010012697,1.038984,21328.0,21327.0,0.00105907]
[1674010012945,0.759354,21328.0,21327.0,0.00105907]
[1674010013435,1.228221,21328.0,21327.0,0.00105907]
[1674010014209,0.759354,21328.0,21327.0,0.00105907]
[1674010014456,1.528221,21328.0,21327.0,0.00105907]
[1674010014984,1.72474665,21328.0,21327.0,0.00105907]
[1674010015504,1.57474665,21328.0,21327.0,0.00105907]
[1674010015769,0.71312965,21328.0,21327.0,0.00105907]
[1674010016571,0.52389265,21328.0,21327.0,0.00105907]
[1674010016814,0.71312965,21328.0,21327.0,0.00105907]
[1674010017089,0.71312965,21328.0,21324.0,0.37280901]
[1674010017416,0.688829,21330.0,21324.0,0.84176001]
[1674010017614,0.688829,21330.0,21325.0,0.321298]
[1674010017615,0.22,21330.0,21325.0,0.321298]
[1674010017877,0.22,21330.0,21326.0,1.728007]
[1674010018152,0.22,21330.0,21327.0,0.321298]
[1674010018399,0.22,21330.0,21328.0,0.790165]
[1674010018688,0.22,21330.0,21329.0,0.321314]
[1674010019168,0.22,21330.0,21329.0,0.790159]
[1674010019429,0.22,21330.0,21329.0,1.259004]
[1674010019700,0.3336,21334.0,21330.0,0.44]
[1674010019971,0.3336,21334.0,21331.0,0.79011]
[1674010020215,0.3336,21334.0,21332.0,0.321314]
[1674010020496,0.3336,21334.0,21333.0,0.321314]
[1674010020735,0.38056311,21334.0,21330.0,0.89147147]
[1674010021007,0.38056311,21334.0,21332.0,0.4318525]
[1674010021008,0.3336,21334.0,21332.0,0.4318525]
[1674010021336,0.3336,21334.0,21333.0,0.321314]
[1674010021539,0.3336,21334.0,21333.0,0.790071]
[1674010022350,0.3336,21334.0,21333.0,1.43923738]
[1674010022603,0.3336,21334.0,21333.0,1.085071]
[1674010023155,0.3336,21334.0,21333.0,0.935071]
[1674010023397,0.3336,21334.0,21333.0,0.321314]
[1674010023912,0.3236,21334.0,21333.0,0.321314]
[1674010024694,0.3236,21334.0,21333.0,1.22019399]
[1674010025499,0.32545097,21334.0,21333.0,0.75143699]
[1674010025802,0.3321,21334.0,21332.0,0.37682511]
[1674010026827,0.98306695,21334.0,21330.0,0.44]
[1674010027082,0.97053995,21333.0,21330.0,0.44]
[1674010027356,0.57302497,21332.0,21330.0,0.44]
[1674010027631,0.3236,21334.0,21331.0,0.42188992]
[1674010027902,0.3236,21334.0,21333.0,0.46248637]
[1674010028172,0.3236,21334.0,21333.0,0.78380037]
[1674010028449,0.3236,21334.0,21333.0,1.25255737]
[1674010028965,0.54853692,21334.0,21330.0,0.44]
[1674010029268,0.19072595,21333.0,21330.0,0.44]
[1674010029525,0.19072595,21332.0,21330.0,0.44]
[1674010029796,0.65951395,21332.0,21330.0,0.44]
[1674010030049,0.42391497,21331.0,21330.0,0.44]
[1674010030308,0.33166497,21331.0,21330.0,0.44]
[1674010030580,0.468763,21333.0,21330.0,0.44]
[1674010030837,0.52191614,21332.0,21330.0,0.44]
[1674010031122,0.51203995,21331.0,21330.0,0.44]
[1674010031400,0.943415,21331.0,21330.0,0.44]
[1674010031652,1.72061669,21331.0,21330.0,0.44]
[1674010032391,1.42061669,21331.0,21330.0,0.44]
[1674010032643,0.321314,21331.0,21330.0,0.44]
[1674010032921,0.792336,21334.0,21330.0,0.908823]
[1674010032922,0.3236,21334.0,21330.0,0.908823]
[1674010033278,0.792336,21334.0,21331.0,0.321314]
[1674010033455,0.792336,21334.0,21330.0,0.44]
[1674010033456,0.3236,21334.0,21330.0,0.44]
[1674010034000,0.3236,21334.0,21331.0,0.00094878]
[1674010034519,0.51432595,21334.0,21330.0,0.44]
[1674010034753,0.19072595,21333.0,21330.0,0.44]
[1674010035023,0.471314,21332.0,21330.0,0.44]
[1674010035300,0.76192195,21331.0,21330.0,0.44]
[1674010035552,0.579696,21331.0,21330.0,0.44]
[1674010036401,0.3236,21334.0,21330.0,0.44]
[1674010037524,0.81367861,21333.0,21330.0,0.44]
[1674010037531,0.47905266,21333.0,21330.0,0.44]
[1674010037796,0.15,21331.0,21330.0,0.44]
[1674010038050,1.198497,21331.0,21330.0,0.44]
[1674010038877,0.102395,21331.0,21330.0,0.44]
[1674010039135,0.468773,21333.0,21330.0,0.44]
[1674010039403,0.98307595,21334.0,21330.0,0.44]
[1674010039404,0.79235,21334.0,21330.0,0.44]
[1674010039985,0.00185097,21333.0,21330.0,0.44]
[1674010040277,0.937558,21332.0,21330.0,0.44]
[1674010040536,0.514814,21331.0,21330.0,0.44]
[1674010040803,1.902416,21331.0,21330.0,0.44]
[1674010041067,1.267416,21331.0,21330.0,0.44]
[1674010041373,1.4412197,21331.0,21330.0,0.44]
[1674010041668,1.91842139,21331.0,21330.0,0.44]
[1674010041914,1.91842139,21331.0,21325.0,0.00098898]
[1674010041915,0.15,21330.0,21325.0,0.00098898]
[1674010042188,1.23083295,21329.0,21325.0,0.00098898]
[1674010042482,1.23083295,21329.0,21324.0,0.00235467]
[1674010042483,0.321314,21328.0,21324.0,0.00235467]
[1674010042780,0.579786,21327.0,21324.0,0.00235467]
[1674010043050,0.471314,21326.0,21324.0,0.00235467]
[1674010043333,0.102395,21325.0,21324.0,0.00235467]
[1674010043599,1.54133792,21325.0,21324.0,0.00235467]
[1674010043875,1.50061197,21325.0,21324.0,0.00235467]
[1674010044163,1.05061197,21325.0,21324.0,0.00235467]
[1674010045225,1.55751437,21325.0,21324.0,0.00235467]
[1674010045824,2.32891606,21325.0,21324.0,0.00235467]
[1674010046369,0.00235,21324.0,21322.0,0.00235467]
[1674010046628,2.35044669,21323.0,21322.0,0.00235467]
[1674010047015,2.88494669,21323.0,21322.0,0.00235467]
[1674010047240,2.89344669,21323.0,21322.0,0.00235467]
[1674010047484,3.01145476,21323.0,21322.0,0.00235467]
[1674010047738,2.78744669,21323.0,21322.0,0.00235467]
[1674010049512,2.78744669,21323.0,21322.0,4.67e-06]
[1674010050000,2.78744669,21323.0,21320.0,7.38e-06]
[1674010050001,3.54367993,21323.0,21320.0,7.38e-06]
[1674010050264,3.54367993,21323.0,21318.0,7.7e-07]
[1674010050265,1.45597169,21321.0,21318.0,7.7e-07]
[1674010050531,0.1448,21319.0,21318.0,7.7e-07]
[1674010050799,0.88809669,21319.0,21318.0,7.7e-07]
[1674010051031,0.110895,21319.0,21318.0,7.7e-07]
[1674010051276,0.894837,21323.0,21318.0,7.7e-07]
[1674010051277,0.1285,21323.0,21318.0,7.7e-07]
[1674010051789,0.321314,21322.0,21318.0,7.7e-07]
[1674010052072,0.1285,21323.0,21318.0,0.46908]
[1674010052546,0.1285,21323.0,21319.0,0.464914]
[1674010052816,0.31922595,21323.0,21320.0,0.471314]
[1674010053078,0.1285,21323.0,21321.0,0.321314]
[1674010053384,0.1285,21323.0,21320.0,0.469034]
[1674010053580,0.1285,21323.0,21322.0,0.145]
[1674010053827,0.15,21329.0,21322.0,1.085313]
[1674010054073,0.620608,21331.0,21323.0,0.321314]
[1674010054322,0.620608,21331.0,21322.0,0.613999]
[1674010054323,0.34252595,21331.0,21322.0,0.613999]
[1674010054590,0.0716,21327.0,21324.0,0.1443]
[1674010054825,0.0716,21327.0,21325.0,0.321314]
[1674010055070,0.0716,21327.0,21326.0,0.321314]
[1674010055564,0.0716,21327.0,21323.0,0.00098447]
[1674010055806,0.0716,21327.0,21323.0,0.15098447]
[1674010056074,0.0716,21327.0,21324.0,0.321314]
[1674010056366,0.0716,21327.0,21325.0,0.321314]
[1674010056611,0.0716,21327.0,21326.0,0.321314]
[1674010056854,0.0716,21327.0,21323.0,0.46994847]
[1674010057156,0.19072595,21326.0,21323.0,0.00098447]
[1674010057617,0.0716,21327.0,21323.0,0.00098447]
[1674010057871,0.0716,21327.0,21324.0,0.145]
[1674010058141,0.0716,21327.0,21325.0,0.321314]
[1674010058380,0.0716,21327.0,21326.0,0.321314]
[1674010058873,0.0716,21327.0,21323.0,0.00098447]
[1674010059120,0.19072595,21326.0,21323.0,0.00098447]
[1674010059621,0.19072595,21326.0,21320.0,0.00099013]
[1674010059881,0.2216,21327.0,21320.0,0.00099013]
[1674010059882,0.19072595,21325.0,21320.0,0.00099013]
[1674010060166,0.19072595,21324.0,21320.0,0.00099013]
[1674010060382,0.51203995,21323.0,21320.0,0.00099013]
[1674010060642,1.21211995,21322.0,21320.0,0.00099013]
[1674010060872,0.329814,21321.0,21317.0,0.00373843]
[1674010061159,0.29312095,21320.0,21317.0,0.00373843]
[1674010061421,0.798879,21319.0,21317.0,0.00373843]
[1674010061658,0.102395,21318.0,21317.0,0.00373843]
[1674010061901,0.0732,21318.0,21317.0,0.00373843]
[1674010062911,0.0732,21318.0,21317.0,0.32505243]
[1674010064184,0.622871,21327.0,21318.0,0.24699023]
[1674010064411,0.48815535,21328.0,21320.0,0.15]
[1674010064660,0.01928135,21328.0,21321.0,0.61402]
[1674010064915,0.01928135,21328.0,21322.0,0.321314]
[1674010065180,0.01928135,21328.0,21323.0,1.259238]
[1674010065414,0.01928135,21328.0,21326.0,0.145]
[1674010065662,0.01928135,21328.0,21327.0,0.321314]
[1674010066171,0.01928135,21328.0,21325.0,0.15]
[1674010066433,0.01928135,21328.0,21324.0,0.623724]
[1674010066682,0.2100073,21328.0,21324.0,0.468944]
[1674010067170,0.01928135,21328.0,21325.0,0.321314]
[1674010067453,0.01928135,21328.0,21326.0,1.404136]
[1674010067698,0.01928135,21328.0,21327.0,0.471314]
[1674010067937,0.01928135,21328.0,21327.0,0.321314]
[1674010069937,0.02113232,21328.0,21327.0,0.321314]
[1674010070180,0.02113232,21328.0,21325.0,0.468925]
[1674010070446,0.21185827,21328.0,21324.0,0.613953]
[1674010070709,0.19072595,21327.0,21322.0,0.84487691]
[1674010070945,0.19072595,21326.0,21322.0,0.84487691]
[1674010071200,0.19072595,21326.0,21322.0,0.46997691]
[1674010071441,0.00185097,21325.0,21322.0,0.00099991]
[1674010071685,0.19072595,21324.0,21322.0,0.00099991]
[1674010072224,0.00185097,21325.0,21319.0,0.47004099]
[1674010072443,0.19072595,21324.0,21319.0,0.47004099]
[1674010072675,0.62078497,21325.0,21319.0,0.47004099]
[1674010072676,0.19072595,21323.0,21319.0,0.47004099]
[1674010072940,0.19257692,21322.0,21319.0,0.00099499]
[1674010073522,0.468894,21327.0,21319.0,0.47005799]
[1674010073708,0.19072595,21326.0,21320.0,0.145]
[1674010073959,0.65963895,21326.0,21319.0,0.47005799]
[1674010074220,0.48816135,21328.0,21319.0,0.47005799]
[1674010074463,0.19072595,21327.0,21320.0,0.295]
[1674010074710,0.19072595,21327.0,21322.0,0.46899]
[1674010074952,0.01928135,21328.0,21322.0,0.61399]
[1674010075215,0.01928135,21328.0,21327.0,0.145]
[1674010075479,0.01928135,21328.0,21327.0,1.404092]
[1674010076002,0.00035879,21332.0,21327.0,1.404092]
[1674010076227,0.00035879,21332.0,21330.0,0.145]
[1674010076487,0.00035879,21332.0,21331.0,1.258916]
[1674010078290,0.00035879,21332.0,21331.0,1.408916]
[1674010078773,0.00035879,21332.0,21331.0,1.40968981]
[1674010081990,0.00035879,21332.0,21331.0,1.25968981]
[1674010082491,0.00035879,21332.0,21331.0,1.72849081]
[1674010083240,0.00035879,21332.0,21331.0,1.258916]
[1674010083809,1e-08,21332.0,21331.0,1.258916]
[1674010084548,1e-08,21332.0,21331.0,0.51464816]
[1674010084858,1e-08,21332.0,21329.0,0.46884]
[1674010085065,1e-08,21332.0,21328.0,0.468865]
[1674010085066,0.19072596,21332.0,21328.0,0.468865]
[1674010085312,0.19072596,21332.0,21327.0,0.0009674]
[1674010085313,0.19072595,21331.0,21327.0,0.0009674]
[1674010085582,1.45988761,21330.0,21327.0,0.0009674]
[1674010085830,0.329784,21329.0,21320.0,0.469033]
[1674010086067,0.329784,21329.0,21324.0,0.00097179]
[1674010086068,0.19072595,21328.0,21324.0,0.00097179]
[1674010086323,0.52050995,21327.0,21319.0,0.46905]
[1674010086562,0.52050995,21327.0,21319.0,0.47000324]
[1674010086563,0.19072595,21326.0,21319.0,0.47000324]
[1674010086813,0.19072595,21325.0,21319.0,0.47000324]
[1674010087056,0.19072595,21324.0,21319.0,0.47000324]
[1674010087301,0.19072595,21323.0,21320.0,0.321284]
[1674010087545,0.19257692,21323.0,21321.0,0.321284]
[1674010087790,0.15266,21326.0,21322.0,0.321284]
[1674010088040,0.15266,21326.0,21320.0,0.00262648]
[1674010088278,0.34072595,21325.0,21320.0,0.00262648]
[1674010088527,0.621317,21328.0,21320.0,0.00262648]
[1674010088788,1.05466505,21331.0,21320.0,0.82787894]
[1674010088789,0.854806,21331.0,21320.0,0.82787894]
[1674010089022,0.854806,21331.0,21322.0,0.145]
[1674010089023,0.19072595,21330.0,21322.0,0.145]
[1674010089301,0.19072595,21330.0,21323.0,1.14646946]
[1674010089550,0.386,21331.0,21324.0,0.321284]
[1674010089812,0.57672595,21331.0,21325.0,0.46892]
[1674010090053,0.386,21331.0,21326.0,0.15]
[1674010090324,1e-08,21332.0,21326.0,0.468902]
[1674010090576,1e-08,21332.0,21327.0,0.67740798]
[1674010090810,1e-08,21332.0,21328.0,1.14610487]
[1674010091069,1e-08,21332.0,21329.0,0.321284]
[1674010091323,1e-08,21332.0,21330.0,0.321284]
[1674010091568,1e-08,21332.0,21331.0,0.321284]
[1674010091820,1e-08,21332.0,21328.0,0.97560087]
[1674010092073,0.19072596,21332.0,21328.0,0.619636]
[1674010092303,0.19072596,21332.0,21329.0,0.321284]
[1674010092304,1e-08,21332.0,21329.0,0.321284]
[1674010092566,0.00185097,21331.0,21330.0,0.321284]
[1674010092819,1e-08,21332.0,21327.0,0.82595753]
[1674010093077,0.19072596,21332.0,21328.0,0.321284]
[1674010093325,0.19072596,21332.0,21329.0,0.790128]
[1674010093326,1e-08,21332.0,21329.0,0.790128]
[1674010093577,1e-08,21332.0,21330.0,0.321284]
[1674010093822,1e-08,21332.0,21327.0,0.35718038]
[1674010093823,0.17837098,21332.0,21327.0,0.35718038]
[1674010094050,1e-08,21332.0,21327.0,0.00099308]
[1674010094324,0.19072595,21331.0,21327.0,0.00099308]
[1674010094803,0.00185097,21330.0,21327.0,0.00099308]
[1674010095050,1e-08,21332.0,21327.0,0.46987008]
[1674010095320,0.01928135,21337.0,21328.0,0.82250346]
[1674010095554,0.19072595,21336.0,21329.0,0.82504446]
[1674010095791,0.19021595,21336.0,21329.0,0.82504446]
[1674010096042,0.19021595,21336.0,21329.0,0.82599699]
[1674010096545,0.19072595,21335.0,21329.0,0.82599699]
[1674010096801,0.19072595,21335.0,21330.0,0.321284]
[1674010097109,0.19072595,21335.0,21331.0,0.321284]
[1674010097351,0.01928135,21337.0,21332.0,0.321284]
[1674010097596,0.9786833,21337.0,21329.0,0.00095253]
[1674010097834,0.52050995,21336.0,21327.0,0.468874]
[1674010098072,0.15,21333.0,21327.0,0.0009746]
[1674010098317,0.51200995,21332.0,21327.0,0.0009746]
[1674010098568,1.75813395,21331.0,21327.0,0.0009746]
[1674010098818,0.51386092,21330.0,21327.0,0.0009746]
[1674010099051,0.51386092,21330.0,21321.0,0.469009]
[1674010099052,0.15,21328.0,21321.0,0.469009]
[1674010099332,0.19072595,21327.0,21320.0,0.00262648]
[1674010099564,0.51200995,21326.0,21320.0,0.00262648]
[1674010099813,0.19072595,21326.0,21321.0,0.00098853]
[1674010100061,0.15,21330.0,21321.0,0.61499853]
[1674010100310,0.19072595,21329.0,21322.0,0.67750346]
[1674010100560,0.389,21331.0,21323.0,0.321284]
[1674010100819,0.19072595,21331.0,21325.0,0.145]
[1674010101086,0.15,21332.0,21324.0,0.468952]
[1674010101330,0.19072595,21331.0,21324.0,0.82517146]
[1674010101822,0.19072595,21331.0,21325.0,0.82250346]
[1674010102081,0.19072595,21331.0,21326.0,0.94018]
[1674010102324,0.19072595,21331.0,21327.0,0.321284]
[1674010102581,0.00185097,21330.0,21326.0,0.468896]
[1674010102811,0.19257692,21330.0,21326.0,0.46987408]
[1674010103068,0.389,21333.0,21327.0,0.321284]
[1674010103308,0.389,21333.0,21326.0,0.82609354]
[1674010103587,0.19072595,21333.0,21330.0,0.145]
[1674010103800,0.01928135,21337.0,21331.0,0.321284]
[1674010104050,0.01928135,21337.0,21332.0,0.321284]
[1674010104292,0.01928135,21337.0,21331.0,0.82500246]
[1674010104541,0.2100073,21337.0,21332.0,0.00095586]
[1674010104789,0.01928135,21337.0,21332.0,0.00095586]
[1674010105074,0.2100073,21337.0,21332.0,0.00095586]
[1674010105329,0.1443,21335.0,21332.0,0.00095586]
[1674010105572,0.98259592,21334.0,21332.0,0.00095586]
[1674010105812,0.98259592,21334.0,21324.0,0.35621946]
[1674010105813,0.321284,21333.0,21324.0,0.35621946]
[1674010106069,0.321284,21333.0,21326.0,0.00097026]
[1674010106070,0.468806,21331.0,21326.0,0.00097026]
[1674010106314,0.23370001,21329.0,21326.0,0.00097026]
[1674010106581,1.44974395,21328.0,21322.0,0.15]
[1674010106822,0.51200995,21327.0,21322.0,0.00096396]
[1674010107071,1.45834695,21326.0,21322.0,0.00096396]
[1674010107336,1.11955169,21327.0,21320.0,0.00262648]
[1674010107337,0.321284,21325.0,21320.0,0.00262648]
[1674010107571,0.19072595,21325.0,21320.0,0.47166248]
[1674010107811,0.19072595,21324.0,21320.0,0.62166248]
[1674010108066,0.19072595,21324.0,21320.0,0.15262648]
[1674010108334,0.15,21326.0,21320.0,0.47166048]
[1674010108583,0.23370001,21329.0,21321.0,0.466284]
[1674010108823,0.42442596,21329.0,21323.0,0.468969]
[1674010109080,0.23370001,21329.0,21323.0,0.468969]
[1674010109324,0.23370001,21329.0,21324.0,0.15]
[1674010109572,0.23370001,21329.0,21324.0,0.468939]
[1674010110060,0.42442596,21329.0,21324.0,0.468939]
[1674010110312,0.23370001,21329.0,21324.0,0.468939]
[1674010110559,0.42442596,21329.0,21325.0,0.321284]
[1674010110791,0.23370001,21329.0,21325.0,0.46892]
[1674010111028,0.23370001,21329.0,21326.0,0.321284]
[1674010111305,0.23555098,21329.0,21325.0,0.61892]
[1674010111537,0.19072595,21328.0,21324.0,0.468939]
[1674010111779,0.19072595,21327.0,21323.0,0.46995547]
[1674010112023,0.19072595,21326.0,21323.0,0.00098647]
[1674010112268,0.00185097,21325.0,21323.0,0.00098647]
[1674010112528,0.19257692,21325.0,21323.0,0.00098647]
[1674010112774,0.00185097,21325.0,21320.0,0.47165748]
[1674010113013,0.19072595,21324.0,21320.0,0.47261654]
[1674010114294,0.00185097,21325.0,21320.0,0.47261654]
[1674010114546,0.85205401,21329.0,21320.0,0.61761654]
[1674010114547,0.23370001,21329.0,21320.0,0.61761654]
[1674010114801,0.19072595,21328.0,21321.0,0.35621946]
[1674010115105,0.19072595,21328.0,21320.0,0.47261654]
[1674010115106,0.19072595,21327.0,21320.0,0.47261654]
[1674010115364,0.19072595,21326.0,21320.0,0.47261654]
[1674010115627,0.19072595,21325.0,21320.0,0.47261654]
[1674010115863,0.618899,21327.0,21320.0,0.47261654]
[1674010115864,0.19072595,21324.0,21320.0,0.47261654]
[1674010116105,0.15,21326.0,21320.0,0.47261654]
[1674010116106,0.19072595,21323.0,21320.0,0.47261654]
[1674010116358,0.19072595,21322.0,21320.0,0.00358554]
[1674010116622,0.321284,21321.0,21320.0,0.00358554]
[1674010116908,0.321284,21321.0,21320.0,0.00262648]
[1674010117212,0.621338,21324.0,21320.0,0.00262648]
[1674010117467,1.018966,21325.0,21320.0,0.00262648]
[1674010117468,0.867136,21325.0,21320.0,0.00262648]
[1674010117746,0.23470001,21322.0,21320.0,0.00262648]
[1674010118007,0.321284,21321.0,21320.0,0.00262648]
[1674010118257,0.16986097,21321.0,21320.0,0.00262648]
[1674010119061,0.96866597,21321.0,21320.0,0.00262648]
[1674010119296,0.49114497,21321.0,21320.0,0.00262648]
[1674010119785,0.32313497,21321.0,21320.0,0.00262648]
[1674010120057,0.70372001,21322.0,21320.0,0.00262648]
[1674010120307,0.70372001,21322.0,21320.0,0.00252612]
[1674010120566,0.321284,21321.0,21320.0,0.00252612]
[1674010120813,1.417826,21321.0,21320.0,0.00252612]
[1674010121047,1.267826,21321.0,21320.0,0.00252612]
[1674010121370,2.14157612,21321.0,21320.0,0.00252612]
[1674010121553,2.25085017,21321.0,21320.0,0.00252612]
[1674010122288,0.15,21320.0,21318.0,0.09938527]
[1674010122558,2.34998069,21319.0,21318.0,0.09938527]
[1674010123041,2.35848069,21319.0,21318.0,0.09938527]
[1674010123278,1.736979,21319.0,21318.0,0.09938527]
[1674010123519,2.036979,21319.0,21318.0,0.09938527]
[1674010124009,2.27295978,21319.0,21318.0,0.09938527]
[1674010124255,2.036979,21319.0,21318.0,0.09938527]
[1674010124499,0.798849,21319.0,21318.0,0.09938527]
[1674010124756,0.23470001,21322.0,21318.0,0.09938527]
[1674010125009,0.23470001,21322.0,21318.0,0.56846427]
[1674010125298,0.23470001,21322.0,21319.0,0.321284]
[1674010125537,0.23470001,21322.0,21320.0,0.321284]
[1674010125796,0.23470001,21322.0,21321.0,0.321284]
[1674010126046,0.23470001,21322.0,21321.0,0.790305]
[1674010126302,1e-08,21322.0,21321.0,0.790305]
[1674010126550,0.15,21329.0,21322.0,5.999e-05]
[1674010126799,0.15,21329.0,21324.0,0.468952]
[1674010126800,0.19072595,21329.0,21324.0,0.468952]
[1674010127047,0.19072595,21328.0,21322.0,0.15005999]
[1674010127287,0.350877,21331.0,21321.0,0.61997886]
[1674010127288,0.19072595,21327.0,21321.0,0.61997886]